fUSD/lending_fUSD_20250325
["ID","MTS","AMOUNT","RATE_DAILY","PERIOD"]
[356632001,1742861450752,-500.0,0.00048117,120]
[356632002,1742861450761,-500.0,0.00048117,30]
[356632003,1742861450771,-500.0,0.00048117,120]
[356632004,1742861450780,-500.0,0.00048117,120]
[356632005,1742861450790,-502.37,0.00048117,2]
[356632006,1742861450800,-500.0,0.00048117,120]
[356632007,1742861450810,-500.0,0.00048117,120]
[356632008,1742861450819,-500.0,0.00048117,120]
[356632009,1742861450829,-500.0,0.00048117,120]
[356632010,1742861450839,-500.0,0.00048117,120]
[356632011,1742861450848,-968.11,0.00048117,120]
[356632012,1742861450858,-2245.43,0.00048117,120]
[356632013,1742861450867,-2000.0,0.00048118,2]
[356632014,1742861450876,-500.0,0.00048118,120]
[356632015,1742861450885,-1191.0,0.0004819,30]
[356632016,1742861450895,-235.24,0.00048261,2]
[356632017,1742861450905,-781.32,0.00048301,30]
[356632018,1742861450914,-27597.1637847,0.00048333,4]
[356632019,1742861450924,-500.0,0.00048343,120]
[356632020,1742861450933,-500.0,0.00048343,120]
[356632021,1742861450941,-500.0,0.0004839,120]
[356632022,1742861450951,-500.0,0.0004839,120]
[356632023,1742861450960,-500.0,0.0004839,120]
[356632024,1742861450971,-3687.8,0.0004839,2]
[356632025,1742861450980,-500.0,0.0004839,120]
[356632026,1742861450989,-912.51,0.00048391,120]
[356632027,1742861450998,-938.9,0.00048391,120]
[356632028,1742861451009,-500.0,0.00048391,120]
[356632029,1742861451018,-500.0,0.00048391,30]
[356632030,1742861451027,-500.0,0.00048391,120]
[356632031,1742861451036,-502.37,0.00048391,2]
[356632032,1742861451046,-563.06333092,0.00048391,120]
[356632033,1742861451055,-500.0,0.00048391,120]
[356632034,1742861451064,-500.0,0.00048391,120]
[356632035,1742861451073,-226.20688288,0.00048391,120]
[356632036,1742861451082,-500.0,0.00048391,120]
[356632037,1742861451092,-968.11,0.00048391,120]
[356632038,1742861451102,-2245.43,0.00048391,120]
[356632039,1742861451111,-2000.0,0.00048392,2]
[356632040,1742861451121,-500.0,0.00048392,120]
[356632041,1742861451130,-166.30622124,0.00048413,15]
[356632042,1742861451140,-257.24841273,0.00048456,15]
[356632043,1742861451149,-500.0,0.00048617,120]
[356632044,1742861451159,-536.62587447,0.00048617,120]
[356632045,1742861451168,-500.0,0.00048664,120]
[356632046,1742861451177,-500.0,0.00048664,120]
[356632047,1742861451187,-500.0,0.00048664,120]
[356632048,1742861451196,-3687.8,0.00048664,2]
[356632049,1742861451206,-500.0,0.00048664,120]
[356632050,1742861451219,-912.51,0.00048665,120]
[356632051,1742861451228,-938.9,0.00048665,120]
[356632052,1742861451238,-500.0,0.00048665,120]
[356632053,1742861451249,-500.0,0.00048665,30]
[356632054,1742861451263,-500.0,0.00048665,120]
[356632055,1742861451273,-502.37,0.00048665,2]
[356632056,1742861451282,-500.0,0.00048665,120]
[356632057,1742861451291,-500.0,0.00048665,120]
[356632058,1742861451301,-500.0,0.00048665,120]
[356632059,1742861451310,-968.11,0.00048665,120]
[356632060,1742861451319,-2245.43,0.00048665,120]
[356632061,1742861451328,-634.91824356,0.00048666,120]
[356632062,1742861451338,-186.84000847,0.0004868,33]
[356632063,1742861451347,-173.29275546,0.00048727,24]
[356632064,1742861451357,-27597.1637847,0.00048731,4]
[356632065,1742861451366,-14875.0925435,0.00048731,4]
[356632066,1742861451376,-150.0,0.00048736,2]
[356632067,1742861451385,-14875.0925435,0.0004876,4]
[356632068,1742861451394,-27597.1637847,0.0004877,4]
[356632069,1742861451403,-14875.0925435,0.0004878,4]
[356632070,1742861451413,-202.0,0.0004879,30]
[356632071,1742861451422,-27597.1637847,0.0004879,4]
[356632072,1742861451431,-44625.2776305,0.0004879,4]
[356632073,1742861451440,-18643.43700464,0.000488,2]
[356632074,1742861766423,-300.0,0.000125,3]
[356632075,1742861766449,-501.37418,0.000125,3]
[356632076,1742861766473,-150.0,0.0001375,2]
[356632077,1742861766497,-1015.74938591,0.0002488,7]
[356632078,1742861766521,-156.21050796,0.000251,2]
[356632079,1742861766546,-150.0,0.000252,2]
[356632080,1742861766570,-369.0,0.000379,2]
[356632081,1742861766594,-300.0,0.00046498,5]
[356632082,1742861766619,-7926.8096,0.00046499,2]
[356632083,1742861766643,-355.40286,0.000465,120]
[356632084,1742861766667,-500.0,0.000466,2]
[356632085,1742861766693,-150.0,0.00046647,4]
[356632086,1742861766720,-13125.45346613,0.00046648,2]
[356632087,1742861767056,-25000.0,0.00046648,2]
[356632088,1742861767894,-25000.0,0.00046648,2]
[356632089,1742861768781,-3036.17183387,0.00046648,2]
[356632090,1742861768807,-1908.86044324,0.00046652,2]
[356632091,1742861768830,-285.62,0.00046719,120]
[356632092,1742861768856,-608.34,0.00046746,120]
[356632093,1742861768880,-625.93,0.00046746,120]
[356632094,1742861768904,-199.00843186,0.00046746,120]
[356632095,1742861768929,-500.0,0.00046746,120]
[356632096,1742861768954,-2458.53,0.00046746,2]
[356632097,1742861768978,-1496.95,0.00046746,120]
[356632098,1742861769003,-500.0,0.00046746,120]
[356632099,1742861769028,-446.34113063,0.00046747,120]
[356632100,1742861769054,-500.0,0.00046747,120]
[356632101,1742861769081,-203.85269888,0.000469,10]
[356632102,1742861769106,-608.34,0.0004702,120]
[356632103,1742861769130,-625.93,0.0004702,120]
[356632104,1742861769155,-529.45,0.0004702,120]
[356632105,1742861769180,-2458.53,0.0004702,2]
[356632106,1742861769205,-1496.95,0.0004702,120]
[356632107,1742861769229,-500.0,0.0004702,120]
[356632108,1742861769254,-500.0,0.00047021,120]
[356632109,1742861769278,-608.34,0.00047294,120]
[356632110,1742861769302,-625.93,0.00047294,120]
[356632111,1742861769328,-2458.53,0.00047294,2]
[356632112,1742861769353,-1496.95,0.00047294,120]
[356632113,1742861769378,-152.83384407,0.00047294,120]
[356632114,1742861769404,-168.61161745,0.00047295,120]
[356632115,1742861771664,-331.38838255,0.00047295,120]
[356632116,1742861771693,-873.5256414,0.00047336,4]
[356632117,1742861771719,-5000.0,0.0004747,120]
[356632118,1742861771745,-18795.08597605,0.00047514,2]
[356632119,1742861773376,-5104.91402395,0.00047514,2]
[356632120,1742861773405,-608.34,0.00047568,120]
[356632121,1742861773431,-625.93,0.00047568,120]
[356632122,1742861773456,-2458.53,0.00047568,2]
[356632123,1742861773481,-1496.95,0.00047568,120]
[356632124,1742861773506,-500.0,0.00047569,120]
[356632125,1742861773531,-355.40286,0.000477,120]
[356632126,1742861773555,-168.39,0.00047786,2]
[356632127,1742861773579,-608.34,0.00047842,120]
[356632128,1742861773604,-625.93,0.00047842,120]
[356632129,1742861773628,-2458.53,0.00047842,2]
[356632130,1742861773653,-1496.95,0.00047842,120]
[356632131,1742861773677,-415.44092758,0.00047843,120]
[356632132,1742861773704,-608.34,0.00048116,120]
[356632133,1742861773728,-625.93,0.00048116,120]
[356632134,1742861773753,-2458.53,0.00048116,2]
[356632135,1742861773778,-1496.95,0.00048116,120]
[356632136,1742861773805,-1687.1315,0.0004829,2]
[356632137,1742861773829,-608.34,0.0004839,120]
[356632138,1742861773853,-591.13068847,0.0004839,120]
[356632139,1742861777692,-34.79931153,0.0004839,120]
[356632140,1742861777723,-2458.53,0.0004839,2]
[356632141,1742861777750,-1496.95,0.0004839,120]
[356632142,1742861777780,-434.57342221,0.00048556,2]
[356632143,1742861777808,-608.34,0.00048664,120]
[356632144,1742861777836,-625.93,0.00048664,120]
[356632145,1742861777865,-2458.53,0.00048664,2]
[356632146,1742861777910,-1496.95,0.00048664,120]
[356632147,1742861777942,-164.86813,0.00048666,85]
[356632148,1742861777973,-205.0,0.0004879,30]
[356632149,1742861778003,-1492.7718,0.0004879,2]
[356632150,1742861778032,-13522.75733626,0.000488,2]
[356632151,1742861778722,-3203.6456591,0.000488,2]
[356632152,1742861778751,-322.35640924,0.000488,120]
[356632153,1742861778780,-1247.37053699,0.000488,120]
[356632154,1742861778807,-20226.62739467,0.000488,120]
[356632155,1742862308660,25000.0,0.00012,2]
[356632156,1742862308691,25000.0,0.00012,2]
[356632157,1742862308720,25000.0,0.00012,2]
[356632158,1742862308749,25000.0,0.00012,2]
[356632159,1742862308779,25000.0,0.00012,2]
[356632160,1742862308808,25000.0,0.00012,2]
[356632161,1742862308838,25000.0,0.00012,2]
[356632162,1742862308871,25000.0,0.00012,2]
[356632163,1742862308908,14000.0,0.00012,2]
[356632164,1742862308938,25000.0,0.00012,2]
[356632165,1742862331709,-510263.0,0.00012,2]
[356632166,1742862440158,-150.0,0.00011999,2]
[356632167,1742862440191,-24850.0,0.00012,2]
[356632168,1742862445893,-25000.0,0.00012,2]
[356632169,1742862450176,-25000.0,0.00012,2]
[356632170,1742862453662,-25000.0,0.00012,2]
[356632171,1742862458363,-25000.0,0.00012,2]
[356632172,1742862474402,-25000.0,0.00012,2]
[356632173,1742862475249,-25000.0,0.00012,2]
[356632174,1742862476114,-25000.0,0.00012,2]
[356632175,1742862477115,-25000.0,0.00012,2]
[356632176,1742862478112,-25000.0,0.00012,2]
[356632177,1742862478257,25000.0,0.0001,2]
[356632178,1742862478287,1852940.49682568,0.0001,2]
[356632179,1742862478316,402376.57450848,0.0001,2]
[356632180,1742862479116,-25000.0,0.00012,2]
[356632181,1742862480060,-25000.0,0.00012,2]
[356632182,1742862481046,-19827.52404247,0.00012,2]
[356632183,1742862481076,-1397.55919287,0.00012972,2]
[356632184,1742862481107,-1682.55519219,0.00013072,2]
[356632185,1742862481139,-255.0,0.00013079,2]
[356632186,1742862482015,350.0,0.000132,3]
[356632187,1742862482094,350.0,0.00012486,3]
[356632188,1742862482170,300.0,0.00011999,2]
[356632189,1742862482532,150.0,0.000132,2]
[356632190,1742862482604,150.0,0.00012486,2]
[356632191,1742862482696,150.0,0.0001368,2]
[356632192,1742862482993,387.36157247,0.00013172,2]
[356632215,1742862631478,-250.0,0.00011,2]
[356632216,1742862631488,-150.0,0.0001145,2]
[356632217,1742862631498,-1165.1914,0.000119,2]
[356632218,1742862631507,-958.97689062,0.000119,2]
[356632219,1742862631561,-325.13231208,0.000119,2]
[356632220,1742862631672,-1797.4166973,0.000119,2]
[356632221,1742862631681,-151.92668134,0.00012,2]
[356632222,1742862631691,-150.0,0.000121,2]
[356632223,1742862631700,-150.0,0.00014355,2]
[356632224,1742862631710,-300.0,0.00017274,2]
[356632225,1742862631719,-1682.55519211,0.00017275,2]
[356632226,1742862631728,-213.0,0.00018862,2]
[356632227,1742862631738,-12329.53524748,0.000196,2]
[356632228,1742862631747,-3022.01,0.00020951,2]
[356632229,1742862631757,-156.21050795,0.00021378,2]
[356632230,1742862631766,-1682.55519211,0.00021478,2]
[356632231,1742862631776,-203.85269888,0.000219,3]
[356632232,1742862631786,-1682.55519211,0.00025681,2]
[356632233,1742862631795,-242.32182208,0.00028,60]
[356632234,1742862631804,-1682.55519211,0.00029884,2]
[356632235,1742862631813,-203.85269888,0.0003015,5]
[356632236,1742862631823,-195.0,0.00030186,2]
[356632237,1742862631833,-44289.93153367,0.00030187,3]
[356632238,1742862631842,-191.08046208,0.00031,2]
[356632239,1742862631851,-10537.31433907,0.00031576,3]
[356632240,1742862631861,-2702.43214775,0.00031576,3]
[356632241,1742862631873,-395.97891996,0.00031576,3]
[356632758,1742862637361,-11670.44312266,0.00031576,3]
[356632760,1742862637371,-2038.59248325,0.00031576,3]
[356632762,1742862637381,-17790.96439409,0.00031576,3]
[356632778,1742862637524,-395.98794862,0.00031576,3]
[356632875,1742862639668,-693.61555113,0.00031576,3]
[356632876,1742862639678,-753.0,0.00033471,2]
[356632877,1742862639687,-457.679,0.00033471,2]
[356632878,1742862639697,-1281.0,0.00033471,2]
[356632879,1742862639707,-1682.55519211,0.00034088,2]
[356632880,1742862639716,-155.24,0.00038123,2]
[356632881,1742862639726,-1682.55519211,0.00038291,2]
[356632882,1742862639735,-203.85269888,0.000384,8]
[356632883,1742862639744,-872.39,0.00041284,2]
[356632884,1742862639754,-239.29,0.000413,120]
[356632886,1742862639763,-1682.55519211,0.00042494,15]
[356632888,1742862639772,-150.0,0.00044117,2]
[356632890,1742862639782,-4233.98898593,0.00044435,2]
[356632892,1742862639794,-754.91355381,0.00044435,2]
[356632894,1742862639805,-567.3315263,0.00044435,2]
[356632896,1742862639816,-1381.3590162,0.00044435,2]
[356632898,1742862639827,-1985.90100475,0.00044435,2]
[356632900,1742862639838,-448.12608553,0.00044435,2]
[356632902,1742862639849,-14528.37982748,0.00044435,2]
[356632904,1742862639859,-439.12294771,0.0004462,2]
[356632906,1742862639868,-168.39,0.00044655,2]
[356632908,1742862639878,-150.0,0.00045295,2]
[356632910,1742862639891,-250.0,0.00045825,2]
[356632912,1742862639900,-381.47,0.00045958,2]
[356632914,1742862639910,-2310.37,0.00045963,2]
[356632916,1742862639920,-442.5,0.00045982,2]
[356632918,1742862639929,-588.0,0.000462,30]
[356632920,1742862639939,-1637.74,0.00046362,2]
[356632922,1742862639948,-150.0,0.00046474,2]
[356632924,1742862639957,-500.0,0.00046575,120]
[356632926,1742862639967,-500.0,0.00046575,120]
[356632928,1742862639976,-1639.02,0.00046575,2]
[356632930,1742862639985,-168.5648244,0.00046575,120]
[356632931,1742862639995,-203.85269888,0.0004665,10]
[356632932,1742862640004,-1682.55519211,0.00046697,15]
[356632933,1742862640013,-500.0,0.00046746,120]
[356632934,1742862640023,-500.0,0.00046849,120]
[356632935,1742862640033,-500.0,0.00046849,120]
[356632937,1742862640042,-1639.02,0.00046849,2]
[356632939,1742862640051,-500.0,0.0004702,120]
[356632941,1742862640060,-500.0,0.00047123,120]
[356632943,1742862640070,-500.0,0.00047123,120]
[356632944,1742862640079,-1639.02,0.00047123,2]
[356632945,1742862640088,-500.0,0.00047294,120]
[356632946,1742862640098,-745.1704252,0.00047336,4]
[356632947,1742862640107,-500.0,0.00047397,120]
[356632948,1742862640116,-500.0,0.00047397,120]
[356632949,1742862640125,-1639.02,0.00047397,2]
[356632950,1742862640134,-500.0,0.00047568,120]
[356632951,1742862640145,-159.81,0.00047631,2]
[356632952,1742862640154,-150.0,0.00047652,2]
[356632953,1742862640163,-500.0,0.00047671,120]
[356632954,1742862640173,-500.0,0.00047671,120]
[356632955,1742862640183,-424.85141422,0.00047671,2]
[356632956,1742862640204,-1214.16858578,0.00047671,2]
[356632957,1742862640216,-824.61,0.00047728,2]
[356632958,1742862640226,-269.09,0.00047756,2]
[356632959,1742862640236,-162.62,0.00047884,120]
[356632960,1742862640245,-256.28910512,0.00047913,2]
[356632961,1742862640259,-22857.88375862,0.00047913,2]
[356633003,1742862644124,-320.82713626,0.00047913,2]
[356633004,1742862644134,-200.33,0.00047925,120]
[356633005,1742862644144,-170.22,0.00047925,2]
[356633006,1742862644153,-176.34286374,0.00047933,2]
[356633007,1742862645411,-23.65713626,0.00047933,2]
[356633008,1742862645421,-500.0,0.00047945,120]
[356633009,1742862645430,-333.13579734,0.00047945,120]
[356633010,1742862645522,-166.86420266,0.00047945,120]
[356633011,1742862645531,-83.40579734,0.00047945,2]
[356633012,1742862645543,-1555.61420266,0.00047945,2]
[356633013,1742862645552,-1000.0,0.0004795,2]
[356633014,1742862645562,-803.15522263,0.00048,120]
[356633015,1742862645573,-339.21091981,0.00048,120]
[356633016,1742862645585,-64.60385756,0.00048,120]
[356633017,1742862645594,-159.81,0.00048012,2]
[356633018,1742862645603,-500.0,0.00048219,120]
[356633019,1742862645612,-500.0,0.00048219,120]
[356633020,1742862645621,-180.58614245,0.00048219,2]
[356633021,1742862645633,-1458.43385755,0.00048219,2]
[356633022,1742862645642,-381.47,0.00048222,2]
[356633023,1742862645651,-1107.5856,0.0004829,2]
[356633024,1742862645661,-499.99,0.0004829,2]
[356633025,1742862645670,-164.86813,0.0004831,84]
[356633026,1742862645679,-317.1654722,0.00048311,2]
[356633027,1742862645688,-159.81,0.00048393,2]
[356633028,1742862645697,-500.0,0.00048493,120]
[356633029,1742862645706,-500.0,0.00048493,120]
[356633030,1742862645716,-1639.02,0.00048493,2]
[356633031,1742862645725,-317.16547221,0.00048562,2]
[356633032,1742862645734,-500.0,0.00048767,120]
[356633033,1742862645743,-500.0,0.00048767,120]
[356633034,1742862645752,-1639.02,0.00048767,2]
[356633035,1742862645761,-159.81,0.00048774,2]
[356633036,1742862645770,-322.76888649,0.00048795,2]
[356633037,1742862645782,-955.39606566,0.00048795,2]
[356633038,1742862645848,-74.78217136,0.00048795,2]
[356633179,1742863831598,-467.21,0.00026849,2]
[356633180,1742863831608,-480.97387379,0.00031553,30]
[356633181,1742863831651,-596.479999,0.00031553,30]
[356633182,1742863831662,-422.54612721,0.00031553,30]
[356633183,1742863831672,-178.81615153,0.00032546,2]
[356633184,1742863831681,-467.21,0.00032646,2]
[356633185,1742863831690,-500.0,0.00034566,30]
[356633186,1742863831699,-2027.88055596,0.00038356,120]
[356633187,1742863831709,-467.21,0.00038443,2]
[356633188,1742863831718,-268.776511,0.00043918,2]
[356633189,1742863831727,-788.09593071,0.00044139,8]
[356633190,1742863831737,-467.21,0.00044239,2]
[356633191,1742863831746,-2613.3244,0.00044335,2]
[356633192,1742863831756,-2021.0,0.00045,30]
[356633193,1742863831766,-151.0,0.00045,120]
[356633194,1742863831775,-300.0,0.00045121,5]
[356633195,1742863831786,-628.44,0.00045122,2]
[356633196,1742863831797,-5000.0,0.00045355,2]
[356633197,1742863831806,-9999.99,0.00045355,2]
[356633198,1742863831815,-299.99,0.00045355,120]
[356633199,1742863831823,-150.0,0.00045455,2]
[356633200,1742863831833,-1112.15997579,0.00045803,2]
[356633201,1742863831842,-198.0,0.00046,120]
[356633202,1742863831851,-198.0,0.00046,30]
[356633203,1742863831860,-198.0,0.00046,30]
[356633204,1742863831870,-194.24,0.00046,30]
[356633205,1742863831880,-150.0,0.00046444,2]
[356633206,1742863831891,-150.0,0.00046626,2]
[356633207,1742863831901,-2062.76,0.00046658,2]
[356633208,1742863831910,-21192.73,0.00046726,2]
[356633209,1742863831919,-168.39,0.00046737,2]
[356633210,1742863831929,-1500.0,0.00046753,2]
[356633211,1742863831938,-371.7873864,0.00046786,30]
[356633212,1742863831947,-178.81615153,0.000469,2]
[356633213,1742863831956,-150.0,0.00046916,4]
[356633214,1742863831967,-23900.0,0.00046917,2]
[356633215,1742863831977,-3000.0,0.00047,30]
[356633216,1742863831986,-1408.0293841,0.00047,2]
[356633217,1742863831998,-1591.9706159,0.00047,2]
[356633218,1742863832008,-250.0,0.00047039,120]
[356633219,1742863832018,-845.82,0.00047171,2]
[356633221,1742863832027,-217.61,0.00047241,120]
[356633222,1742863832036,-845.82,0.0004727,2]
[356633223,1742863832045,-558.8778189,0.00047336,4]
[356633225,1742863832055,-162.62,0.00047364,120]
[356633226,1742863832065,-845.82,0.00047369,2]
[356633227,1742863832074,-1079.11,0.00047372,2]
[356633228,1742863832083,-628.44,0.00047386,2]
[356633229,1742863832093,-181.6780652,0.00047413,120]
[356633230,1742863832104,-1397.7819348,0.00047413,120]
[356633231,1742863832113,-1000.0,0.00047413,2]
[356633232,1742863832124,-200.0,0.00047434,2]
[356633233,1742863832133,-3843.36,0.00047459,2]
[356633234,1742863832142,-845.82,0.00047468,2]
[356633235,1742863832153,-95.4147902,0.000475,2]
[356633236,1742863832166,-74.0152098,0.000475,2]
[356633237,1742863832175,-200.0,0.00047521,2]
[356633238,1742863832184,-845.82,0.00047568,2]
[356633239,1742863832193,-4711.88863305,0.00047588,2]
[356633240,1742863832202,-295.50415715,0.00047667,2]
[356633241,1742863832214,-550.31584285,0.00047667,2]
[356633242,1742863832223,-1184.861,0.00047697,81]
[356633243,1742863832232,-845.82,0.00047766,2]
[356633244,1742863832241,-857.79914756,0.00047781,2]
[356633245,1742863832250,-1000.0,0.0004779,2]
[356633246,1742863832259,-1256.70400959,0.00047791,120]
[356633247,1742863832278,-743.29599041,0.00047791,120]
[356633248,1742863832287,-323.50400959,0.00047866,2]
[356633250,1742863837455,-522.31599041,0.00047866,2]
[356633251,1742863837465,-150.0,0.00047872,2]
[356633252,1742863837475,-184.08,0.00047942,2]
[356633253,1742863837485,-845.82,0.00047965,2]
[356633254,1742863837494,-1000.0,0.00047999,2]
[356633255,1742863837504,-123.68087111,0.00048,120]
[356633256,1742863837515,-74.31912889,0.00048,120]
[356633257,1742863837524,-198.0,0.00048,30]
[356633258,1742863837534,-198.0,0.00048,30]
[356633259,1742863837543,-3000.0,0.00048,120]
[356633260,1742863837553,-2000.0,0.00048,2]
[356633261,1742863837562,-2000.0,0.00048,7]
[356633262,1742863837571,-920.0991605,0.00048,7]
[356633263,1742863837583,-692.74999987,0.00048,7]
[356633264,1742863837594,-1387.15083963,0.00048,7]
[356633265,1742863837604,-198.0,0.00048,120]
[356633266,1742863837613,-309.83662798,0.00048064,2]
[356633267,1742863837626,-535.98337202,0.00048064,2]
[356633268,1742863837635,-293.44662798,0.00048164,2]
[356633269,1742863837646,-552.37337202,0.00048164,2]
[356633270,1742863837656,-845.82,0.00048263,2]
[356633271,1742863837665,-845.82,0.00048362,2]
[356633272,1742863837675,-845.82,0.00048462,2]
[356633273,1742863837684,-150.0,0.00048511,7]
[356633274,1742863837693,-150.0,0.00048512,7]
[356633275,1742863837703,-150.0,0.00048512,7]
[356633276,1742863837712,-150.0,0.00048514,7]
[356633277,1742863837722,-150.0,0.00048516,7]
[356633278,1742863837732,-150.0,0.00048517,7]
[356633279,1742863837741,-150.0,0.00048519,7]
[356633280,1742863837750,-150.0,0.00048525,7]
[356633281,1742863837759,-150.0,0.00048527,7]
[356633282,1742863837769,-150.0,0.00048544,7]
[356633283,1742863837778,-150.0,0.00048544,7]
[356633284,1742863837787,-150.0,0.00048548,7]
[356633285,1742863837796,-150.0,0.0004855,7]
[356633286,1742863837806,-150.0,0.00048552,7]
[356633287,1742863837815,-150.0,0.00048552,7]
[356633288,1742863837824,-150.0,0.00048555,7]
[356633289,1742863837833,-150.0,0.00048558,7]
[356633290,1742863837842,-150.0,0.00048558,7]
[356633292,1742863837852,-845.82,0.00048561,2]
[356633293,1742863837862,-150.0,0.00048568,7]
[356633294,1742863837872,-150.0,0.00048568,7]
[356633295,1742863837883,-150.0,0.00048571,7]
[356633296,1742863837894,-150.0,0.00048572,7]
[356633297,1742863837903,-150.0,0.00048576,7]
[356633298,1742863837913,-150.0,0.00048577,7]
[356633299,1742863837922,-150.0,0.00048583,7]
[356633300,1742863837934,-150.0,0.00048585,7]
[356633301,1742863837943,-150.0,0.00048586,7]
[356633302,1742863837953,-150.0,0.0004859,7]
[356633303,1742863837963,-0.89266722,0.00048592,14]
[356633304,1742863837975,-552.47111105,0.00048592,14]
[356633305,1742863837986,-446.63622173,0.00048592,14]
[356633306,1742863837995,-150.0,0.00048594,7]
[356633307,1742863838005,-150.0,0.00048596,7]
[356633308,1742863838015,-150.0,0.000486,7]
[356633309,1742863838026,-150.0,0.00048603,7]
[356633310,1742863838035,-150.0,0.00048605,7]
[356633311,1742863838044,-150.0,0.00048605,7]
[356633312,1742863838054,-150.0,0.00048606,7]
[356633313,1742863838063,-1000.0,0.00048607,14]
[356633314,1742863838073,-150.0,0.00048607,7]
[356633315,1742863838082,-150.0,0.00048607,7]
[356633316,1742863838091,-150.0,0.00048608,7]
[356633317,1742863838100,-150.0,0.00048619,7]
[356633318,1742863838109,-150.0,0.00048619,7]
[356633319,1742863838119,-150.0,0.00048622,7]
[356633320,1742863838128,-150.0,0.00048622,7]
[356633321,1742863838138,-150.0,0.00048623,7]
[356633322,1742863838147,-150.0,0.00048626,7]
[356633323,1742863838157,-150.0,0.00048634,7]
[356633324,1742863838166,-150.0,0.00048642,7]
[356633325,1742863838176,-150.0,0.00048645,7]
[356633326,1742863838185,-300.0,0.00048657,7]
[356633327,1742863838195,-150.0,0.00048657,7]
[356633328,1742863838205,-150.0,0.00048658,7]
[356633329,1742863838214,-150.0,0.0004866,7]
[356633330,1742863838224,-150.0,0.0004866,7]
[356633331,1742863838234,-296.43366746,0.0004866,2]
[356633332,1742863838250,-549.38633254,0.0004866,2]
[356633333,1742863838260,-94.61366746,0.00048661,7]
[356633334,1742863838272,-55.38633254,0.00048661,7]
[356633335,1742863838282,-150.0,0.00048661,7]
[356633336,1742863838292,-150.0,0.00048667,7]
[356633337,1742863838301,-150.0,0.00048669,7]
[356633338,1742863838312,-150.0,0.00048673,7]
[356633339,1742863838321,-150.0,0.00048679,7]
[356633340,1742863838331,-150.0,0.00048683,7]
[356633341,1742863838341,-150.0,0.00048683,7]
[356633342,1742863838350,-150.0,0.00048683,7]
[356633343,1742863838360,-150.0,0.00048684,7]
[356633344,1742863838370,-150.0,0.00048685,7]
[356633345,1742863838379,-150.0,0.00048686,7]
[356633346,1742863838388,-150.0,0.00048688,7]
[356633347,1742863838397,-150.0,0.00048688,7]
[356633348,1742863838406,-150.0,0.00048689,7]
[356633349,1742863838416,-346.91643593,0.00048692,2]
[356633350,1742863838428,-150.0,0.00048692,7]
[356633351,1742863838438,-159.87161705,0.000487,120]
[356633352,1742863838448,-198.0,0.000487,120]
[356633353,1742863838458,-150.0,0.00048702,7]
[356633354,1742863838468,-150.0,0.00048703,7]
[356633355,1742863838477,-150.0,0.00048703,7]
[356633356,1742863838486,-150.0,0.00048707,7]
[356633357,1742863838496,-150.0,0.00048708,7]
[356633358,1742863838505,-150.0,0.00048709,7]
[356633359,1742863838515,-150.0,0.0004871,7]
[356633360,1742863838525,-150.0,0.0004871,7]
[356633361,1742863838534,-167.54,0.0004871,2]
[356633362,1742863838545,-150.0,0.00048715,7]
[356633363,1742863838555,-150.0,0.00048717,7]